Cogmind - Beta 16 @@@ ROGUE MODE // 2025.12.02 @ 20:20:32 Player: Mozco Result: Destroyed by PR-62P(R) with Subdweller Beam Cannon Performance ------------- Evolutions (0) 0 Regions Visited (2) 400 Robots Destroyed (33) 165 Value Destroyed (545) 545 Prototype IDs (3) 60 Alien Tech Used (0) 0 Bonus (0) 0 TOTAL SCORE: 1170 Bonus ------- None Cogmind --------- Core Integrity 0/250 Matter 230/300 Energy 250/250 System Corruption 0% Temperature Cool (9) Movement Treading (240) Ox1 Location -10/Subcaves Parts ------- > --- POWER (1) -------- Ion Engine > --- PROPULSION (2) --- Light Treads Light Treads > --- UTILITY (2) ------ High-capacity Storage Unit V3-11A's Pendant > --- WEAPON (2) ------- Subdweller Beam Cannon Grenade Launcher > --- INVENTORY (20) --- Light Treads Light Treads Light Treads Light Treads Light Treads High-capacity Storage Unit Structural Scanner Machine Analyzer Propulsion Shielding EM Pulse Gun Medium Laser Small Laser Small Laser Subdweller Laser Subdweller Machine Gun Grenade Launcher Grenade Launcher Peak State ------------ > --- POWER ------------ Ion Engine > --- PROPULSION ------- Light Treads Light Treads > --- UTILITY ---------- High-capacity Storage Unit V3-11A's Pendant > --- WEAPON ----------- EM Pulse Gun Subdweller Laser > --- INVENTORY -------- Light Treads Light Treads Light Treads Light Treads Light Treads High-capacity Storage Unit Structural Scanner Machine Analyzer Propulsion Shielding Medium Laser Small Laser Small Laser Subdweller Beam Cannon Subdweller Machine Gun Grenade Launcher Grenade Launcher Grenade Launcher [Rating: 12] Favorites ----------- Power Ion Engine Engine Ion Engine Propulsion Light Treads Treads Light Treads Utility High-capacity Storage Unit Device V3-11A's Pendant Storage High-capacity Storage Unit Protection Propulsion Shielding Weapon Small Laser Energy Gun Small Laser Energy Cannon Subdweller Beam Cannon Launcher Grenade Launcher Build | -11 -10 -10 ------- Run | Yrd Mat Sub Slots Evolved . | . . . Power . | . . . Propulsion . | . . . Utility . | . . . Weapon . | . . . Parts Attached 25 | 6 5 14 Power 3 | 1 . 2 Engine 3 | 1 . 2 Core . | . . . Reactor . | . . . Propulsion 6 | 2 1 3 Treads 6 | 2 1 3 Leg . | . . . Wheel . | . . . Hover . | . . . Flight . | . . . Utility 6 | 1 2 3 Device 1 | . . 1 Storage 2 | 1 1 . Processor . | . . . Hackware . | . . . Protection 3 | . 1 2 Artifact . | . . . Weapon 10 | 2 2 6 Energy Gun 8 | 2 2 4 Energy Cannon 1 | . . 1 Ballistic Gun . | . . . Ballistic Cannon . | . . . Launcher 1 | . . 1 Special Weapon . | . . . Impact Weapon . | . . . Slashing Weapon . | . . . Piercing Weapon . | . . . Special Melee Weapon . | . . . Unidentified Prototypes 1 | . . 1 Parts Lost 9 | . . 9 Power 2 | . . 2 Propulsion 2 | . . 2 Utility 3 | . . 3 Weapon 2 | . . 2 Highest Loss Streak 6 | . . 6 To Critical Strikes . | . . . Average Backups 16 | 2 17 17 Power . | . 1 . Propulsion 5 | . 5 5 Utility 3 | . 2 3 Weapon 7 | . 8 7 Tool/Special . | . . . Unused Backups 20 | . 9 11 Power . | . . . Propulsion 6 | . 2 4 Utility 3 | . . 3 Weapon 11 | . 7 4 Tool/Special . | . . . Average Slot Usage (%) 95 | . 95 95 Engine 13 | . 14 13 Treads 28 | . 28 28 Device 1 | . . 2 Storage 14 | . 14 14 Protection 8 | . 9 7 Energy Gun 26 | . 28 24 Peak Build Rating 12 | 6 9 12 Average Rating 8 | 4 8 9 On Entrance 5 | . 6 9 Avg Prop Armor Cover (%) . | . . . Naked Turns . | . . . Heaviest Build 57 | 13 50 57 Greatest Support 40 | 40 40 40 Greatest Overweight (x) 1 | . 1 1 Average Overweight (x) . | . . 1 Largest Inventory Capacity 20 | 8 20 20 Average Capacity 19 | 7 19 20 Most Carried 20 | 4 20 20 Average Carried 17 | 2 17 17 Final Capacity 20 | 8 20 20 Final Carried 20 | 4 20 17 Class Distribution -------------------- 100% | Mutant Dominant Class ---------------- Mutant | -10/Materials Mutant | -10/Subcaves Resources | -11 -10 -10 ----------- Run | Yrd Mat Sub Matter Collected 430 | 180 130 120 Remotely . | . . . Salvage Created 908 | . 551 357 Parts 65 | . 36 29 Haulers Intercepted 2 | . 2 . Recyclers Shooed 4 | . 4 . Parts Field Recycled . | . . . Retrieved Matter . | . . . Parts Self-Destructed 13 | . . 13 Prevented . | . . . Parts Restored . | . . . Kills | -11 -10 -10 ------- Run | Yrd Mat Sub Combat Hostiles Destroyed 24 | . 12 12 Guns 21 | . 12 9 AOE 2 | . . 2 Classes Destroyed 8 | . 7 1 Worker 1 | . 1 . Hauler 2 | . 2 . Recycler 3 | . 3 . Operator 1 | . 1 . Watcher 2 | . 2 . Swarmer 16 | . 11 5 Grunt 1 | . 1 . Subdweller 7 | . . 7 Best Kill Streak 3 | . 3 3 Combat Bots Only 3 | . 3 3 Max Kills in Single Turn 1 | . 1 1 Gunslinging . | . . . Exploded 1 | . . 1 Melee . | . . . Uniques/NPCs Destroyed . | . . . Combat | -11 -10 -10 -------- Run | Yrd Mat Sub Hostile Shots Fired 147 | . 60 87 Missed 45 | . 17 28 Hits 102 | . 43 59 Projectile 102 | . 43 59 Critical Strikes 2 | . 1 1 Damage Taken 1495 | . 486 1009 Core 274 | . 71 203 Absorbed by Shields . | . . . Redirected to Shielding 150 | . 36 114 Core Remaining (%) 100 | 100 . . Volleys Fired 101 | . 51 50 Largest 2 | . 2 2 Hottest 100 | . 90 100 Shots Fired 179 | . 96 83 Gun 169 | . 96 73 Cannon 6 | . . 6 Launcher 4 | . . 4 Special . | . . . Kinetic . | . . . Thermal 159 | . 95 64 Explosive 4 | . . 4 Electromagnetic 16 | . 1 15 Robot Hit Streak 39 | . 13 39 Robot Miss Streak 8 | . 8 2 Penetration Max . | . . . Secondary Targets 1 | . . 1 Max Gunslinging Chain 1 | . . 1 Shots Hit Robots 111 | . 52 59 Core Hits 50 | . 27 23 Critical Kills . | . . . Critical Parts Destroyed 1 | . . 1 Critical Strikes 6 | . 4 2 Burn 5 | . 4 1 Destroy 1 | . . 1 Melee Attacks . | . . . Impact . | . . . Slashing . | . . . Piercing . | . . . Sneak Attacks . | . . . Combat Hostiles . | . . . Follow-up Attacks . | . . . Damage Inflicted 1537 | . 654 883 Guns 1439 | . 648 791 Cannons . | . . . Explosions 92 | . . 92 Melee . | . . . Ramming 6 | . 6 . Kinetic . | . . . Thermal 1283 | . 633 650 Explosive 92 | . . 92 Electromagnetic 156 | . 15 141 Impact . | . . . Slashing . | . . . Piercing . | . . . Highest Corruption . | . . . Average Corruption . | . . . Corruption Purged . | . . . Corruption Blocked . | . . . Overload Shots . | . . . Overflow Damage . | . . . Projectiles . | . . . Explosions . | . . . Melee . | . . . Knockbacks 1 | . 1 . Impact 1 | . 1 . Kinetic . | . . . Secondary . | . . . Self-Inflicted Damage . | . . . Shots . | . . . Rammed 2 | . 2 . Targets Rammed 3 | . 3 . Kicked . | . . . Crushed 1 | . 1 . Highest Temperature 240 | . 240 6 Average Temperature 57 | . 58 3 Received Heat Transfer 192 | . 18 174 Effects 1 | . 1 . Interference 1 | . 1 . Siege Activations . | . . . Martial Activations . | . . . Shielding Activations . | . . . Robots Disrupted . | . . . Combat Hostiles . | . . . Robots Corrupted 1 | . . 1 Combat Hostiles 1 | . . 1 Parts Fried 3 | . . 3 Impact Corruptions . | . . . Robots Melted . | . . . Combat Hostiles . | . . . Parts Melted 6 | . 4 2 Heat Transferred 3327 | . 1958 1369 Parts Sabotaged . | . . . Parts Stolen . | . . . Parts Stripped . | . . . Power Chain Reactions . | . . . Alert | -11 -10 -10 ------- Run | Yrd Mat Sub Maximum Alert Level . | . . . Low Security (%) 100 | 100 100 . Level 1 . | . . . Level 2 . | . . . Level 3 . | . . . Level 4 . | . . . Level 5 . | . . . High Security . | . . . Max Security . | . . . Peak Influence 115 | . 115 . Initial . | . . . Average 25 | . 26 . Influence Increases 569 | . 399 170 Destroy 0b10 Robot/C 340 | . 240 100 Destroy 0b10 Robot/NC 45 | . 45 . Destroy Leader 68 | . 58 10 Successful Hack 41 | . 41 . Partial Spotted 15 | . 15 . Lose Combat Pursuer 60 | . . 60 Influence Decreases 519 | . 356 163 Entered New Map 22 | . . 22 Time Decay 477 | . 356 121 Lost Ally 20 | . . 20 Squads Dispatched 2 | . 2 . Investigation 1 | . 1 . Extermination . | . . . Reinforcement 1 | . 1 . Assault . | . . . Garrison . | . . . Intercept . | . . . Searches Triggered . | . . . Construction Impeded . | . . . Haulers Reinforced . | . . . Active Scanning Responses . | . . . Cargo Convoy Interrupts . | . . . Stealth | -11 -10 -10 --------- Run | Yrd Mat Sub Distress Signals . | . . . Communications Jammed . | . . . Distress Signals . | . . . Times Spotted 47 | . 28 19 Peak Tracking Total 6 | . 4 6 Tactical Retreats 2 | . . 2 Traps | -11 -10 -10 ------- Run | Yrd Mat Sub Traps Triggered 3 | . 3 . Indirectly . | . . . Trap Hack Attempts . | . . . Triggered . | . . . Disarmed . | . . . Reprogrammed . | . . . Reused . | . . . Traps Extracted . | . . . Installed . | . . . Triggered . | . . . Machines | -11 -10 -10 ---------- Run | Yrd Mat Sub Machines Disabled . | . . . Max in Single Turn . | . . . Machines Repaired . | . . . Machines Dismantled . | . . . Machines Sabotaged . | . . . Overloaded Fab Kills . | . . . Hacking | -11 -10 -10 --------- Run | Yrd Mat Sub Machines Accessed 7 | . 6 1 Terminals 6 | . 6 . Fabricators . | . . . Repair Stations . | . . . Recycling Units . | . . . Scanalyzers . | . . . Garrison Access . | . . . Total Hacks 24 | . 20 4 Successful 14 | . 10 4 Failed 9 | . 9 . Catastrophic 1 | . 1 . Database Lockouts 1 | . 1 . Manual 18 | . 18 . Terminals 20 | . 20 . Fabricators . | . . . Repair Stations . | . . . Recycling Units . | . . . Scanalyzers . | . . . Garrison Access . | . . . Terminal Hacks 10 | . 6 4 Record 4 | . . 4 Robot Analysis 2 | . 2 . Prototype ID Bank 1 | . 1 . Terminal Index 1 | . 1 . Recall Investigation 1 | . 1 . Zone Layout 1 | . 1 . Fabricator Hacks . | . . . Repair Station Hacks . | . . . Recycling Unit Hacks . | . . . Scanalyzer . | . . . Garrison Access Hacks . | . . . Unauthorized Hacks 4 | . 4 . Terminals 4 | . 4 . Botnet 3 | . 3 . Operators 1 | . 1 . Fabricators . | . . . Repair Stations . | . . . Recycling Units . | . . . Scanalyzers . | . . . Garrison Access . | . . . Data Cores Recovered . | . . . Used . | . . . Hacking Detections 5 | . 5 . Full Trace Events . | . . . Feedback Events . | . . . Feedback Blocked . | . . . Robot Schematics Acquired . | . . . Robots Built . | . . . Authchips . | . . . Time . | . . . Total Robot Build Rating . | . . . Part Schematics Acquired . | . . . Parts Built . | . . . Authchips . | . . . Time . | . . . Total Part Build Rating . | . . . Part Studies Acquired . | . . . Parts Repaired . | . . . Time . | . . . Parts Recycled . | . . . Recycled Matter . | . . . Retrieved Matter . | . . . Retrieved Components . | . . . Parts Scanalyzed . | . . . Part Schematics Acquired . | . . . Parts Damaged . | . . . Bothacking | -11 -10 -10 ------------ Run | Yrd Mat Sub Used RIF Installer . | . . . Robots Hacked . | . . . Non-combat . | . . . Combat . | . . . Robot Hacks Applied . | . . . Relay Couplers Released . | . . . Fabnet Peak Effective % . | . . . Robots Rewired . | . . . Allies Hacked . | . . . Hacks Repelled . | . . . Allies | -11 -10 -10 -------- Run | Yrd Mat Sub Total Allies 2 | . . 2 Largest Group 2 | . . 2 Highest-Rated Group 38 | . . 38 Highest-Rated Ally 19 | . . 19 Total Orders . | . . . Ally Attacks 4 | . . 4 Total Damage 65 | . . 65 Kills 1 | . . 1 Allies Corrupted . | . . . Allies Melted . | . . . Intel | -11 -10 -10 ------- Run | Yrd Mat Sub Active Infowar (turns) . | . . . Robot Analysis Total 2 | . 2 . Derelict Logs Recovered 1 | . . 1 Drone Launches . | . . . Drone Recoveries . | . . . Exploration | -11 -10 -10 ------------- Run | Yrd Mat Sub Turns Passed 4451 | 104 2395 1952 Spaces Moved 1702 | 59 911 732 Core 2 | 2 . . Treads 1700 | 57 911 732 Legs . | . . . Wheels . | . . . Hover . | . . . Flight . | . . . Fastest Speed 50 | 50 160 240 Average Speed 234 | 156 235 240 Slowest Speed 240 | 160 240 240 Overloaded Moves . | . . . Propulsion Burnouts . | . . . Robots Hopped . | . . . Potential Cave-ins . | . . . Cave-ins Triggered . | . . . Exploration Rate (%) 47 | 3 96 42 Regions Visited 2 Branch Regions 1 Pre-discovered Areas 1 | . . 1 Known Exits Taken . | . . . Unknown Exits Taken 2 | 1 1 . Scrap Searched . | . . . Spaces Dug 4 | . . 4 Terrain Destroyed 31 | . . 31 Melee . | . . . Projectile 6 | . . 6 AOE 25 | . . 25 Terrain Rammed . | . . . Walls Destroyed . | . . . Machines Disabled . | . . . Actions | -11 -10 -10 --------- Run | Yrd Mat Sub Total 1973 | 68 1063 842 Wait 91 | . 54 37 Move 1700 | 58 910 732 Hop . | . . . Pick Up 34 | 4 27 3 Fast Attach 11 | 6 2 3 Attach 8 | . . 8 Detach 1 | . . 1 Swap 10 | . 3 7 Drop 14 | . 13 1 Fire 101 | . 51 50 Melee . | . . . Ram . | . . . Kick . | . . . Crush 3 | . 3 . Escape Stasis . | . . . Rewire . | . . . Trap . | . . . Miscellaneous . | . . . Route ------- -11/Scrapyard -10/Materials (discovered 6 exits: [*Mat x3] / [*Min x2] / *Sub) -10/Subcaves (discovered 1 exit: Rec) History --------- Turn | Location | Event 17 | -11/Scrapyard | Discovered new exit (range 15) 105 | -11/Scrapyard | Entered Materials 269 | -10/Materials | Discovered new exit (range 8) 317 | -10/Materials | Build established: Mutant 523 | -10/Materials | Discovered new exit (range 12) 849 | -10/Materials | Discovered new exit (range 12) 1401 | -10/Materials | Discovered new exit (range 15) 2306 | -10/Materials | Central database locked down 2412 | -10/Materials | Discovered new exit (range 8) 2486 | -10/Materials | Discovered new exit (range 8) 2500 | -10/Materials | Entered Subcaves 2501 | -10/Subcaves | Approached by a straggling Scientist 2520 | -10/Subcaves | Identified exit to Recycling 2549 | -10/Subcaves | Shifting Twisted Machinery released Hvy. Battle Rifle 2589 | -10/Subcaves | Shifting Twisted Machinery released Battle Cannon 2716 | -10/Subcaves | A swath of the cavern ceiling suddenly collapsed 2821 | -10/Subcaves | Visited Clippyterm 2828 | -10/Subcaves | Learned location of Extension (-6) 2828 | -10/Subcaves | Learned Research security intel 2925 | -10/Subcaves | Shifting Twisted Machinery released Piercing Trap 3012 | -10/Subcaves | A swath of the cavern ceiling suddenly collapsed 3156 | -10/Subcaves | Core integrity fell below 50% 3219 | -10/Subcaves | Lost 6 parts (1p2n1u2w) 3309 | -10/Subcaves | Core integrity fell below 20% 4043 | -10/Subcaves | Visited triangular shrine 4058 | -10/Subcaves | Found Prototype Device 4058 | -10/Subcaves | Identified V3-11A's Pendant 4063 | -10/Subcaves | Befriended Subdweller 4172 | -10/Subcaves | Ambushed by Subdweller buried in earth 4173 | -10/Subcaves | Befriended Subdweller 4452 | -10/Subcaves | Ambushed by Subdweller buried in earth 4452 | -10/Subcaves | Destroyed by PR-62P(R) with Subdweller Beam Cannon Last Messages --------------- 04044_ V3-11A: "So the triangle door let you in, too. What does the pendant tell you?" 04045_ V3-11A: "It told me to wait here, so here I have waited for quite some time." 04058_ Acquired Prototype Device. 04058_ Identified V3-11A's Pendant. [Achievement: SUBSUB] 04063_ V3-11A: "The pendant says I should follow you." 04068_ V3-11A: "The pendant has taught me much." 04069_ V3-11A: "About the stars. About the molecules. About life." 04173_ KF-NIB(R): "YEYEYEAH!" 04256_ V3-11A: "I hear you, but what does it all mean?!" 04256_ V3-11A destroyed. 04256_ S-10 Pest destroyed. 04257_ KF-NIB(R) destroyed. 04261_ S-10 Pest destroyed. 04266_ Lgt. Assault Rifle fries itself beyond repair. 04267_ Flight Unit fries itself beyond repair. 04269_ Lgt. Ion Engine fries itself beyond repair. 04284_ Subatomizers dissect the Sub. Monowheel. Map ----- +----------------------------------------------------+ | ?????????????????????????????????????????????????? | | ?????????????????????????????????????????????????? | | ?????????????????????????????????????????????????? | | ?????????????????????????????????????????????????? | | ?????????????????????????????????????????????????? | | ?????????????????????????????????????????????????? | | ?????????????????????????????????????????????????? | | ?????????????????????????????????????????????????? | | ?????????????????????????????????????????????????? | | ?????????????????????????????????????????????????? | | ##???###?????????????????????????????????????????? | | "##### ##????????????????????????????????????????? | | ## #????????????????????????????????????????? | | #????????????????????????????????????????? | | ## ##???????????????????????????????????????? | | "## ###?????????????????##??????????????????? | | ##### #??????????????### #??????????????????? | | ??#### ##??????????????# #??????????????????? | | ??# ## ##?????????????### #???????????????????? | | ???# #??????????????# R #???????????????????? | | ??## ######?##??????# ##???????????????????? | | ?## # ## ######## ######??????????????? | | ?# ### ## ## # #??????????????? | | ?# ## ### ##??????????###? | | ?# ## # # # #?# ####??????## ## | | ?## #?## #### ### # @## ## ###????# | | ??##??## ##?## ######### ##???# # | | ####### #### ##### #??## # | | ## # ## # # # #?## | | #?# | | #### | | ## ## ## # # ## #### ### | | ######### #### ##########??### | | ????????# ?# #?????????????## | | ????????# #??????????????# | | ????????#### ######??????????????## ## ! | | ???????????#####????????????????????##### %& | | ????????????????????????????????????????# &* | | ????????????????????????????????????????####### | | ????????????????????????????????????##????##?## | | ????????????????????????????????????# #### ## | | ????????????????????????????????????## | | ????????????????????????????????????# | | ????????????????????????????????????# # # | | ?????????????????????????????????????????## | | ??????????????????????????????????????????# | | ??????????????????????????????????????????## ### | | ???????????????????????????????????????????##&##?? | | ???????????????????????????????????????????##%##?? | | ???????????????????????????????????????????#! =##? | +----------------------------------------------------+ Best States ------------- Heat Dissipation 25 Energy Generation 15 Energy Capacity 250 Matter Stores 300 Matter Capacity 300 Sight Range 16 Terrain Scan Density 10 Propulsion Shielding 33 Evasion (%) 40 Recoil Reduction 2 Item Schematics ----------------- None Robot Schematics ------------------ None Fabricated ------------ Nothing Repaired ---------- Nothing Studied --------- None Alien Tech Used ----------------- None Achievements -------------- SUBSUB Challenges ------------ None Game ------ Seed PhaseArmageddonBooster Manual? 0 Play Time 00:15:40 Cumulative 372.2 hours Start 2025.12.02 @ 20:05:29 End 2025.12.02 @ 20:20:32 Sessions 1 Manual Loads 0 Difficulty Rogue Special Mode None Game No. 379 Rogue 375 Adventurer 3 Explorer 1 Win Type - Total 5 Types 4/0/1/0/0/0/0/0/0/0 Lore% 85 Gallery% 79 Achievement% 67 Wizard Run 0 Options --------- Layout 0 ASCII 0 Keyboard 0 Movement Mouse Keybinds 0 Fullscreen 2 Font 18/SmallcapsGlow Map View 76x50 Zoom Use 0% Tactical HUD 1 Map Filters NONE Filters NONE Steam 1 RUN: 857e7ec2-778a-4833-a290-ae82b7f18284